[Event "Live Chess"]
[Site "Chess.com"]
[Date "2011.02.01"]
[Round "-"]
[White "hipposcottimus"]
[Black "alebits"]
[Result "1-0"]
[CurrentPosition "r5r1/5kpp/1q2n3/1N1pR3/P4n2/1p3PQ1/1P1N3P/7K b - -"]
[Timezone "UTC"]
[ECO "B20"]
[ECOUrl "https://www.chess.com/openings/Sicilian-Defense"]
[UTCDate "2011.02.01"]
[UTCTime "07:23:23"]
[WhiteElo "1806"]
[BlackElo "1744"]
[TimeControl "60"]
[Termination "hipposcottimus won on time"]
[StartTime "07:23:23"]
[EndDate "2011.02.01"]
[EndTime "07:25:24"]
[Link "https://www.chess.com/game/live/93559196"]

1. e4 {[%clk 0:01:00]} 1... c5 {[%clk 0:01:00]} 2. Bb5 {[%clk 0:00:58.1]} 2... a6 {[%clk 0:00:57.7]} 3. Be2 {[%clk 0:00:56.9]} 3... b5 {[%clk 0:00:56.6]} 4. c4 {[%clk 0:00:56.6]} 4... Bb7 {[%clk 0:00:56]} 5. cxb5 {[%clk 0:00:55.6]} 5... Bxe4 {[%clk 0:00:55.3]} 6. d3 {[%clk 0:00:53.8]} 6... Bxg2 {[%clk 0:00:52.3]} 7. Bf3 {[%clk 0:00:49.9]} 7... Bxf3 {[%clk 0:00:51.8]} 8. Nxf3 {[%clk 0:00:48.9]} 8... d5 {[%clk 0:00:50.8]} 9. d4 {[%clk 0:00:47.3]} 9... axb5 {[%clk 0:00:49.3]} 10. dxc5 {[%clk 0:00:46.2]} 10... e6 {[%clk 0:00:48.9]} 11. Be3 {[%clk 0:00:42.6]} 11... Nc6 {[%clk 0:00:46.9]} 12. Nc3 {[%clk 0:00:41.6]} 12... b4 {[%clk 0:00:44.9]} 13. Nb5 {[%clk 0:00:40.5]} 13... Qa5 {[%clk 0:00:43.7]} 14. a4 {[%clk 0:00:36.9]} 14... Nf6 {[%clk 0:00:36.6]} 15. Bf4 {[%clk 0:00:31.1]} 15... Nd7 {[%clk 0:00:34.7]} 16. Bd6 {[%clk 0:00:28.4]} 16... b3+ {[%clk 0:00:28.5]} 17. Nd2 {[%clk 0:00:24.1]} 17... Nxc5 {[%clk 0:00:26.1]} 18. Bxf8 {[%clk 0:00:22.2]} 18... Kxf8 {[%clk 0:00:24.3]} 19. O-O {[%clk 0:00:21.8]} 19... Qb6 {[%clk 0:00:18.3]} 20. Kh1 {[%clk 0:00:21.5]} 20... Ne5 {[%clk 0:00:16.7]} 21. Qe2 {[%clk 0:00:20.9]} 21... f6 {[%clk 0:00:14.1]} 22. Rg1 {[%clk 0:00:20.2]} 22... Kf7 {[%clk 0:00:12.6]} 23. f3 {[%clk 0:00:19.6]} 23... Ng6 {[%clk 0:00:10.4]} 24. Qg2 {[%clk 0:00:19]} 24... Rhg8 {[%clk 0:00:07.7]} 25. Rae1 {[%clk 0:00:18.6]} 25... Nf4 {[%clk 0:00:06.5]} 26. Qg3 {[%clk 0:00:17.4]} 26... e5 {[%clk 0:00:06]} 27. Rxe5 {[%clk 0:00:14.4]} 27... fxe5 {[%clk 0:00:03.8]} 28. Re1 {[%clk 0:00:14.1]} 28... Nce6 {[%clk 0:00:01.4]} 29. Rxe5 {[%clk 0:00:11.9]} 1-0

[Event "Live Chess"]
[Site "Chess.com"]
[Date "2011.02.01"]
[Round "-"]
[White "alebits"]
[Black "hipposcottimus"]
[Result "0-1"]
[CurrentPosition "8/bp2r1Bk/7p/p1p5/2B3P1/2P4P/PPK5/5R2 w - -"]
[Timezone "UTC"]
[ECO "C31"]
[ECOUrl "https://www.chess.com/openings/Kings-Gambit-Declined-Falkbeer-Blackburne-Attack"]
[UTCDate "2011.02.01"]
[UTCTime "07:20:54"]
[WhiteElo "1751"]
[BlackElo "1799"]
[TimeControl "60"]
[Termination "hipposcottimus won on time"]
[StartTime "07:20:54"]
[EndDate "2011.02.01"]
[EndTime "07:23:02"]
[Link "https://www.chess.com/game/live/93558741"]

1. e4 {[%clk 0:01:00]} 1... e5 {[%clk 0:01:00]} 2. f4 {[%clk 0:00:57.6]} 2... d5 {[%clk 0:00:58.4]} 3. Nf3 {[%clk 0:00:57.1]} 3... Bg4 {[%clk 0:00:55.8]} 4. d3 {[%clk 0:00:53.1]} 4... dxe4 {[%clk 0:00:53]} 5. dxe4 {[%clk 0:00:52.7]} 5... Qxd1+ {[%clk 0:00:51.3]} 6. Kxd1 {[%clk 0:00:52.1]} 6... exf4 {[%clk 0:00:50.4]} 7. Bxf4 {[%clk 0:00:48.6]} 7... Nf6 {[%clk 0:00:48.4]} 8. Nd2 {[%clk 0:00:47.9]} 8... Bc5 {[%clk 0:00:45.7]} 9. c3 {[%clk 0:00:43.6]} 9... O-O {[%clk 0:00:44.8]} 10. Kc2 {[%clk 0:00:43]} 10... Bb6 {[%clk 0:00:44.2]} 11. Bd3 {[%clk 0:00:39.7]} 11... Bh5 {[%clk 0:00:43.5]} 12. h3 {[%clk 0:00:38.6]} 12... Bg6 {[%clk 0:00:42.4]} 13. g4 {[%clk 0:00:37.6]} 13... h6 {[%clk 0:00:39.5]} 14. Be5 {[%clk 0:00:34.1]} 14... Nfd7 {[%clk 0:00:37.9]} 15. Bd4 {[%clk 0:00:33]} 15... c5 {[%clk 0:00:36.2]} 16. Bf2 {[%clk 0:00:30.6]} 16... Nc6 {[%clk 0:00:35.9]} 17. Nh4 {[%clk 0:00:29.3]} 17... Nce5 {[%clk 0:00:34.6]} 18. Nxg6 {[%clk 0:00:27.8]} 18... Nxg6 {[%clk 0:00:34.3]} 19. Bg3 {[%clk 0:00:25.4]} 19... Nge5 {[%clk 0:00:34]} 20. Be2 {[%clk 0:00:24]} 20... Rad8 {[%clk 0:00:31.2]} 21. Nc4 {[%clk 0:00:23.2]} 21... Nxc4 {[%clk 0:00:29.7]} 22. Bxc4 {[%clk 0:00:22.5]} 22... Ne5 {[%clk 0:00:29]} 23. Bxe5 {[%clk 0:00:20.5]} 23... Rde8 {[%clk 0:00:27.8]} 24. Bg3 {[%clk 0:00:16.9]} 24... Rxe4 {[%clk 0:00:26.8]} 25. Rae1 {[%clk 0:00:16.3]} 25... Rxe1 {[%clk 0:00:19.1]} 26. Rxe1 {[%clk 0:00:14.2]} 26... a5 {[%clk 0:00:18.8]} 27. Rf1 {[%clk 0:00:13.2]} 27... Ba7 {[%clk 0:00:16.5]} 28. Bd6 {[%clk 0:00:12.4]} 28... Rd8 {[%clk 0:00:14.6]} 29. Bxf7+ {[%clk 0:00:09.9]} 29... Kh7 {[%clk 0:00:14.4]} 30. Be5 {[%clk 0:00:07]} 30... Rf8 {[%clk 0:00:12.4]} 31. Bc4 {[%clk 0:00:05]} 31... Re8 {[%clk 0:00:10.2]} 32. Bxg7 {[%clk 0:00:01.8]} 32... Re7 {[%clk 0:00:07]} 0-1

[Event "Live Chess"]
[Site "Chess.com"]
[Date "2011.02.01"]
[Round "-"]
[White "hipposcottimus"]
[Black "alebits"]
[Result "0-1"]
[CurrentPosition "5rk1/5ppp/8/3p2N1/3qpP2/8/P4QPP/3r2K1 w - -"]
[Timezone "UTC"]
[ECO "B20"]
[ECOUrl "https://www.chess.com/openings/Sicilian-Defense"]
[UTCDate "2011.02.01"]
[UTCTime "07:18:42"]
[WhiteElo "1792"]
[BlackElo "1758"]
[TimeControl "60"]
[Termination "alebits won by checkmate"]
[StartTime "07:18:42"]
[EndDate "2011.02.01"]
[EndTime "07:20:37"]
[Link "https://www.chess.com/game/live/93558248"]

1. e4 {[%clk 0:01:00]} 1... c5 {[%clk 0:01:00]} 2. Bb5 {[%clk 0:00:58.1]} 2... a6 {[%clk 0:00:56.6]} 3. Be2 {[%clk 0:00:57.7]} 3... b5 {[%clk 0:00:54.7]} 4. c4 {[%clk 0:00:57.4]} 4... Bb7 {[%clk 0:00:54.2]} 5. cxb5 {[%clk 0:00:56.5]} 5... axb5 {[%clk 0:00:53.4]} 6. Bxb5 {[%clk 0:00:56.2]} 6... Bxe4 {[%clk 0:00:52.9]} 7. d3 {[%clk 0:00:54.2]} 7... Bc6 {[%clk 0:00:52.4]} 8. Bc4 {[%clk 0:00:53.2]} 8... d5 {[%clk 0:00:50.3]} 9. Bb3 {[%clk 0:00:50.9]} 9... Nf6 {[%clk 0:00:49.8]} 10. Bc2 {[%clk 0:00:50.2]} 10... e5 {[%clk 0:00:48.5]} 11. Nc3 {[%clk 0:00:49.9]} 11... Be7 {[%clk 0:00:47.2]} 12. Nce2 {[%clk 0:00:49.6]} 12... O-O {[%clk 0:00:46.6]} 13. Nf3 {[%clk 0:00:49.3]} 13... Nbd7 {[%clk 0:00:45.7]} 14. Bg5 {[%clk 0:00:48.9]} 14... Qc7 {[%clk 0:00:44.5]} 15. Bxf6 {[%clk 0:00:48.1]} 15... Nxf6 {[%clk 0:00:42.2]} 16. O-O {[%clk 0:00:47.8]} 16... Rad8 {[%clk 0:00:40.8]} 17. d4 {[%clk 0:00:47.4]} 17... e4 {[%clk 0:00:38.4]} 18. Ng5 {[%clk 0:00:44.8]} 18... Bb5 {[%clk 0:00:34.8]} 19. f4 {[%clk 0:00:43.4]} 19... cxd4 {[%clk 0:00:33.5]} 20. Nxd4 {[%clk 0:00:40.7]} 20... Bxf1 {[%clk 0:00:31.6]} 21. Qxf1 {[%clk 0:00:40.4]} 21... Bc5 {[%clk 0:00:28.5]} 22. Rd1 {[%clk 0:00:33.6]} 22... Qb6 {[%clk 0:00:27.9]} 23. Qf2 {[%clk 0:00:32.9]} 23... Qxb2 {[%clk 0:00:25.4]} 24. Bb3 {[%clk 0:00:27.9]} 24... Ng4 {[%clk 0:00:23]} 25. Rd2 {[%clk 0:00:26.7]} 25... Qa1+ {[%clk 0:00:19.1]} 26. Qf1 {[%clk 0:00:23.9]} 26... Bxd4+ {[%clk 0:00:18.4]} 27. Rxd4 {[%clk 0:00:23]} 27... Qxd4+ {[%clk 0:00:16.9]} 28. Kh1 {[%clk 0:00:22.1]} 28... Nf2+ {[%clk 0:00:16.2]} 29. Kg1 {[%clk 0:00:21.4]} 29... Nh3+ {[%clk 0:00:14.8]} 30. Kh1 {[%clk 0:00:21.1]} 30... Nf2+ {[%clk 0:00:13.1]} 31. Kg1 {[%clk 0:00:20.7]} 31... Rc8 {[%clk 0:00:12.3]} 32. Qxf2 {[%clk 0:00:18.5]} 32... Rc1+ {[%clk 0:00:09]} 33. Bd1 {[%clk 0:00:13.9]} 33... Rxd1# {[%clk 0:00:07.7]} 0-1

[Event "Live Chess"]
[Site "Chess.com"]
[Date "2011.02.01"]
[Round "-"]
[White "hipposcottimus"]
[Black "chemalito"]
[Result "1-0"]
[CurrentPosition "8/8/8/6kp/7Q/6BP/6K1/8 b - -"]
[Timezone "UTC"]
[ECO "C00"]
[ECOUrl "https://www.chess.com/openings/French-Defense-Knight-Variation"]
[UTCDate "2011.02.01"]
[UTCTime "07:15:50"]
[WhiteElo "1801"]
[BlackElo "1621"]
[TimeControl "60"]
[Termination "hipposcottimus won on time"]
[StartTime "07:15:50"]
[EndDate "2011.02.01"]
[EndTime "07:18:13"]
[Link "https://www.chess.com/game/live/93557709"]

1. e4 {[%clk 0:01:00]} 1... e6 {[%clk 0:01:00]} 2. Nf3 {[%clk 0:00:59.7]} 2... Bd6 {[%clk 0:00:59.6]} 3. e5 {[%clk 0:00:58]} 3... f6 {[%clk 0:00:58.8]} 4. exd6 {[%clk 0:00:56.6]} 4... cxd6 {[%clk 0:00:58.1]} 5. d4 {[%clk 0:00:56.3]} 5... e5 {[%clk 0:00:57.8]} 6. c3 {[%clk 0:00:55]} 6... e4 {[%clk 0:00:56.8]} 7. Nfd2 {[%clk 0:00:53.7]} 7... f5 {[%clk 0:00:56.3]} 8. Be2 {[%clk 0:00:49.7]} 8... g6 {[%clk 0:00:56]} 9. f3 {[%clk 0:00:49]} 9... Nf6 {[%clk 0:00:54.4]} 10. fxe4 {[%clk 0:00:47.4]} 10... Nxe4 {[%clk 0:00:54.1]} 11. Nxe4 {[%clk 0:00:46.9]} 11... fxe4 {[%clk 0:00:53.7]} 12. O-O {[%clk 0:00:46.7]} 12... Nc6 {[%clk 0:00:53.1]} 13. Bg4 {[%clk 0:00:42.5]} 13... d5 {[%clk 0:00:50.7]} 14. Nd2 {[%clk 0:00:41.7]} 14... d6 {[%clk 0:00:50.2]} 15. c4 {[%clk 0:00:41.3]} 15... Bxg4 {[%clk 0:00:49.2]} 16. Qxg4 {[%clk 0:00:38.9]} 16... dxc4 {[%clk 0:00:47.1]} 17. Nxe4 {[%clk 0:00:37.6]} 17... Nxd4 {[%clk 0:00:45.4]} 18. Nf6+ {[%clk 0:00:35]} 18... Kf8 {[%clk 0:00:42.3]} 19. Qxd4 {[%clk 0:00:34.5]} 19... Qb6 {[%clk 0:00:34.2]} 20. Bh6+ {[%clk 0:00:33.1]} 20... Kf7 {[%clk 0:00:32.6]} 21. Nd5+ {[%clk 0:00:30.4]} 21... Ke6 {[%clk 0:00:28.5]} 22. Nxb6 {[%clk 0:00:29.5]} 22... axb6 {[%clk 0:00:28.2]} 23. Rae1+ {[%clk 0:00:27.9]} 23... Kd7 {[%clk 0:00:27.9]} 24. Qg7+ {[%clk 0:00:26.1]} 24... Kc6 {[%clk 0:00:27.6]} 25. Rf6 {[%clk 0:00:24.2]} 25... Rhe8 {[%clk 0:00:25.2]} 26. Rxd6+ {[%clk 0:00:23.7]} 26... Kxd6 {[%clk 0:00:24.1]} 27. Rf1 {[%clk 0:00:22.5]} 27... Re7 {[%clk 0:00:20.7]} 28. Qf6+ {[%clk 0:00:21.4]} 28... Re6 {[%clk 0:00:19.4]} 29. Qc3 {[%clk 0:00:20.2]} 29... Rae8 {[%clk 0:00:17.7]} 30. Rd1+ {[%clk 0:00:19.8]} 30... Kc6 {[%clk 0:00:16.7]} 31. Qc1 {[%clk 0:00:19]} 31... b5 {[%clk 0:00:15.3]} 32. b3 {[%clk 0:00:18.1]} 32... Kc5 {[%clk 0:00:14.8]} 33. bxc4 {[%clk 0:00:17.5]} 33... bxc4 {[%clk 0:00:14.5]} 34. a3 {[%clk 0:00:16.5]} 34... b5 {[%clk 0:00:13.8]} 35. a4 {[%clk 0:00:16.2]} 35... bxa4 {[%clk 0:00:13.3]} 36. Qa3+ {[%clk 0:00:15.3]} 36... Kb5 {[%clk 0:00:12.2]} 37. Qb2+ {[%clk 0:00:14.2]} 37... Kc5 {[%clk 0:00:11.6]} 38. Qa3+ {[%clk 0:00:13.6]} 38... Kb5 {[%clk 0:00:10.3]} 39. Rb1+ {[%clk 0:00:13.3]} 39... Kc6 {[%clk 0:00:09]} 40. Bd2 {[%clk 0:00:12.6]} 40... Kd5 {[%clk 0:00:08.4]} 41. Bc3 {[%clk 0:00:11.7]} 41... Re1+ {[%clk 0:00:06.6]} 42. Rxe1 {[%clk 0:00:10.8]} 42... Rxe1+ {[%clk 0:00:05.7]} 43. Bxe1 {[%clk 0:00:10.5]} 43... Kd4 {[%clk 0:00:05.3]} 44. Qc3+ {[%clk 0:00:09.5]} 44... Kc5 {[%clk 0:00:04.6]} 45. g3 {[%clk 0:00:09.1]} 45... a3 {[%clk 0:00:04.1]} 46. Qxa3+ {[%clk 0:00:08.3]} 46... Kd4 {[%clk 0:00:03.4]} 47. Qc3+ {[%clk 0:00:08]} 47... Kc5 {[%clk 0:00:03]} 48. h3 {[%clk 0:00:07.6]} 48... h5 {[%clk 0:00:02.4]} 49. Kg2 {[%clk 0:00:07.3]} 49... Kd6 {[%clk 0:00:02]} 50. g4 {[%clk 0:00:07]} 50... Ke6 {[%clk 0:00:01.7]} 51. gxh5 {[%clk 0:00:06]} 51... gxh5 {[%clk 0:00:01.3]} 52. Bg3 {[%clk 0:00:05.4]} 52... Kf5 {[%clk 0:00:01]} 53. Qxc4 {[%clk 0:00:04.9]} 53... Kg5 {[%clk 0:00:00.3]} 54. Qh4+ {[%clk 0:00:04.2]} 1-0

[Event "Live Chess"]
[Site "Chess.com"]
[Date "2011.02.01"]
[Round "-"]
[White "chemalito"]
[Black "hipposcottimus"]
[Result "0-1"]
[CurrentPosition "8/2p2qk1/1pP5/1K6/7p/8/8/8 w - -"]
[Timezone "UTC"]
[ECO "C20"]
[ECOUrl "https://www.chess.com/openings/Kings-Pawn-Opening-Leonardis-Variation"]
[UTCDate "2011.02.01"]
[UTCTime "07:13:19"]
[WhiteElo "1625"]
[BlackElo "1797"]
[TimeControl "60"]
[Termination "hipposcottimus won on time"]
[StartTime "07:13:19"]
[EndDate "2011.02.01"]
[EndTime "07:15:24"]
[Link "https://www.chess.com/game/live/93557207"]

1. e4 {[%clk 0:01:00]} 1... e5 {[%clk 0:01:00]} 2. d3 {[%clk 0:00:59.7]} 2... Nc6 {[%clk 0:00:59.6]} 3. h3 {[%clk 0:00:58.8]} 3... Nf6 {[%clk 0:00:59.3]} 4. g4 {[%clk 0:00:58.5]} 4... d5 {[%clk 0:00:58.8]} 5. f4 {[%clk 0:00:58.2]} 5... Bxg4 {[%clk 0:00:57.7]} 6. Be2 {[%clk 0:00:54.9]} 6... Bxe2 {[%clk 0:00:55.4]} 7. Qxe2 {[%clk 0:00:54.4]} 7... dxe4 {[%clk 0:00:55.1]} 8. dxe4 {[%clk 0:00:53.2]} 8... exf4 {[%clk 0:00:54]} 9. e5 {[%clk 0:00:51.7]} 9... Nd7 {[%clk 0:00:53.7]} 10. Nf3 {[%clk 0:00:51]} 10... Be7 {[%clk 0:00:52.4]} 11. Bxf4 {[%clk 0:00:48.7]} 11... O-O {[%clk 0:00:51.5]} 12. Nc3 {[%clk 0:00:48.3]} 12... Bb4 {[%clk 0:00:50.8]} 13. a3 {[%clk 0:00:46.3]} 13... Bxc3+ {[%clk 0:00:46.7]} 14. bxc3 {[%clk 0:00:45.8]} 14... Ncxe5 {[%clk 0:00:46]} 15. Bxe5 {[%clk 0:00:44]} 15... f6 {[%clk 0:00:41.8]} 16. Bxf6 {[%clk 0:00:36]} 16... Qxf6 {[%clk 0:00:38.5]} 17. Rg1 {[%clk 0:00:35.3]} 17... Rfe8 {[%clk 0:00:37.7]} 18. Rxg7+ {[%clk 0:00:28.6]} 18... Kxg7 {[%clk 0:00:35.9]} 19. Ne5 {[%clk 0:00:22.3]} 19... Rxe5 {[%clk 0:00:34]} 20. Qxe5 {[%clk 0:00:21.4]} 20... Qxe5+ {[%clk 0:00:33.5]} 21. Kd2 {[%clk 0:00:21.1]} 21... Qh2+ {[%clk 0:00:31.6]} 22. Kc1 {[%clk 0:00:20.7]} 22... Rf8 {[%clk 0:00:30.8]} 23. Kb2 {[%clk 0:00:20.4]} 23... Rf2 {[%clk 0:00:29.5]} 24. Rc1 {[%clk 0:00:20]} 24... Rxc2+ {[%clk 0:00:28.3]} 25. Rxc2 {[%clk 0:00:19.4]} 25... Qxh3 {[%clk 0:00:27.3]} 26. Kb3 {[%clk 0:00:18.8]} 26... Nc5+ {[%clk 0:00:26.1]} 27. Kb4 {[%clk 0:00:17.6]} 27... Ne4 {[%clk 0:00:25.8]} 28. c4 {[%clk 0:00:16.1]} 28... a5+ {[%clk 0:00:23.3]} 29. Kxa5 {[%clk 0:00:14.4]} 29... Qxa3+ {[%clk 0:00:22.4]} 30. Kb5 {[%clk 0:00:13]} 30... Nc3+ {[%clk 0:00:21.5]} 31. Rxc3 {[%clk 0:00:06.7]} 31... Qxc3 {[%clk 0:00:18.7]} 32. Kc5 {[%clk 0:00:06.3]} 32... b6+ {[%clk 0:00:17.2]} 33. Kc6 {[%clk 0:00:05.8]} 33... Qf3+ {[%clk 0:00:15.6]} 34. Kb5 {[%clk 0:00:03.6]} 34... Qf7 {[%clk 0:00:15.1]} 35. c5 {[%clk 0:00:01.3]} 35... h5 {[%clk 0:00:14.7]} 36. c6 {[%clk 0:00:00.2]} 36... h4 {[%clk 0:00:12.8]} 0-1

[Event "Live Chess"]
[Site "Chess.com"]
[Date "2011.02.01"]
[Round "-"]
[White "brandop"]
[Black "hipposcottimus"]
[Result "0-1"]
[CurrentPosition "r2q2k1/pp2rppp/8/3p4/P4P2/1nn1B3/1P4PP/3K1B1R w - -"]
[Timezone "UTC"]
[ECO "D31"]
[ECOUrl "https://www.chess.com/openings/Queens-Gambit-Declined-Semi-Slav-Defense-Accelerated-Move-Order"]
[UTCDate "2011.02.01"]
[UTCTime "07:11:59"]
[WhiteElo "1196"]
[BlackElo "1792"]
[TimeControl "60"]
[Termination "hipposcottimus won by resignation"]
[StartTime "07:11:59"]
[EndDate "2011.02.01"]
[EndTime "07:13:01"]
[Link "https://www.chess.com/game/live/93556946"]

1. d4 {[%clk 0:01:00]} 1... d5 {[%clk 0:01:00]} 2. c4 {[%clk 0:00:59.6]} 2... c6 {[%clk 0:00:59.7]} 3. Nc3 {[%clk 0:00:59]} 3... e6 {[%clk 0:00:58.7]} 4. f4 {[%clk 0:00:58.5]} 4... Nf6 {[%clk 0:00:56.9]} 5. Nf3 {[%clk 0:00:57.9]} 5... Bb4 {[%clk 0:00:54.9]} 6. Qd3 {[%clk 0:00:55.9]} 6... Bxc3+ {[%clk 0:00:54.6]} 7. Qxc3 {[%clk 0:00:54.5]} 7... O-O {[%clk 0:00:54.3]} 8. Qd3 {[%clk 0:00:53.6]} 8... Na6 {[%clk 0:00:54]} 9. e4 {[%clk 0:00:52.4]} 9... Bd7 {[%clk 0:00:53.7]} 10. exd5 {[%clk 0:00:50.8]} 10... cxd5 {[%clk 0:00:53.4]} 11. cxd5 {[%clk 0:00:49.6]} 11... exd5 {[%clk 0:00:53.1]} 12. Ne5 {[%clk 0:00:48.1]} 12... Nc7 {[%clk 0:00:52.8]} 13. Ng6 {[%clk 0:00:45.6]} 13... Re8+ {[%clk 0:00:51.3]} 14. Ne7+ {[%clk 0:00:41.1]} 14... Rxe7+ {[%clk 0:00:49.9]} 15. Be3 {[%clk 0:00:37.9]} 15... Ne4 {[%clk 0:00:49.4]} 16. Kd1 {[%clk 0:00:35.9]} 16... Bb5 {[%clk 0:00:48.1]} 17. Qxb5 {[%clk 0:00:32.6]} 17... Nxb5 {[%clk 0:00:46.2]} 18. a4 {[%clk 0:00:31.9]} 18... Nxd4 {[%clk 0:00:44.3]} 19. Rc1 {[%clk 0:00:30.9]} 19... Nb3 {[%clk 0:00:42.9]} 20. Rc3 {[%clk 0:00:29.3]} 20... Nxc3+ {[%clk 0:00:39.2]} 0-1

[Event "Live Chess"]
[Site "Chess.com"]
[Date "2011.02.01"]
[Round "-"]
[White "hipposcottimus"]
[Black "brandop"]
[Result "1-0"]
[CurrentPosition "rn2k2B/p1p2p1p/3p1Qp1/1B6/8/5N2/P4KPP/1R5R b kq -"]
[Timezone "UTC"]
[ECO "B06"]
[ECOUrl "https://www.chess.com/openings/Modern-Defense-with-1-e4-2.Nf3"]
[UTCDate "2011.02.01"]
[UTCTime "07:10:56"]
[WhiteElo "1791"]
[BlackElo "1198"]
[TimeControl "60"]
[Termination "hipposcottimus won by resignation"]
[StartTime "07:10:56"]
[EndDate "2011.02.01"]
[EndTime "07:11:43"]
[Link "https://www.chess.com/game/live/93556760"]

1. e4 {[%clk 0:01:00]} 1... g6 {[%clk 0:01:00]} 2. Nf3 {[%clk 0:00:59.9]} 2... Bg7 {[%clk 0:00:59.4]} 3. e5 {[%clk 0:00:59.5]} 3... d6 {[%clk 0:00:56.9]} 4. d4 {[%clk 0:00:59.2]} 4... dxe5 {[%clk 0:00:54]} 5. dxe5 {[%clk 0:00:58.9]} 5... Qd6 {[%clk 0:00:53.1]} 6. exd6 {[%clk 0:00:56.1]} 6... Bxb2 {[%clk 0:00:52.5]} 7. Bxb2 {[%clk 0:00:54.6]} 7... exd6 {[%clk 0:00:50.8]} 8. Bxh8 {[%clk 0:00:53.6]} 8... Nf6 {[%clk 0:00:49.4]} 9. Qd2 {[%clk 0:00:50.5]} 9... Ne4 {[%clk 0:00:46.8]} 10. Qh6 {[%clk 0:00:50]} 10... Nxf2 {[%clk 0:00:44.5]} 11. Kxf2 {[%clk 0:00:48.5]} 11... Bf5 {[%clk 0:00:42.3]} 12. Qg7 {[%clk 0:00:46.9]} 12... Bxc2 {[%clk 0:00:40.2]} 13. Qf6 {[%clk 0:00:46.2]} 13... Bxb1 {[%clk 0:00:37.4]} 14. Rxb1 {[%clk 0:00:45.2]} 14... b5 {[%clk 0:00:36.5]} 15. Bxb5+ {[%clk 0:00:44.5]} 1-0

[Event "Live Chess"]
[Site "Chess.com"]
[Date "2011.02.01"]
[Round "-"]
[White "benski44"]
[Black "hipposcottimus"]
[Result "1-0"]
[CurrentPosition "8/6Rp/1Bb2p2/1kP5/2r5/7P/5KP1/8 b - -"]
[Timezone "UTC"]
[ECO "C31"]
[ECOUrl "https://www.chess.com/openings/Kings-Gambit-Declined-Falkbeer-Countergambit-Accepted"]
[UTCDate "2011.02.01"]
[UTCTime "07:08:13"]
[WhiteElo "1918"]
[BlackElo "1790"]
[TimeControl "60"]
[Termination "benski44 won on time"]
[StartTime "07:08:13"]
[EndDate "2011.02.01"]
[EndTime "07:10:30"]
[Link "https://www.chess.com/game/live/93556154"]

1. e4 {[%clk 0:01:00]} 1... e5 {[%clk 0:01:00]} 2. f4 {[%clk 0:00:59.6]} 2... d5 {[%clk 0:00:58.8]} 3. exd5 {[%clk 0:00:57.7]} 3... Qxd5 {[%clk 0:00:58.5]} 4. Nc3 {[%clk 0:00:57.6]} 4... Qe6 {[%clk 0:00:56.3]} 5. Nf3 {[%clk 0:00:57]} 5... e4 {[%clk 0:00:55.5]} 6. Ng5 {[%clk 0:00:54.4]} 6... Nf6 {[%clk 0:00:54.8]} 7. Qe2 {[%clk 0:00:51.6]} 7... Qc6 {[%clk 0:00:50.5]} 8. Ngxe4 {[%clk 0:00:50.3]} 8... Bg4 {[%clk 0:00:47.8]} 9. Qe3 {[%clk 0:00:44.3]} 9... Nxe4 {[%clk 0:00:44.8]} 10. Bb5 {[%clk 0:00:41.6]} 10... Nd7 {[%clk 0:00:34.7]} 11. Qxe4+ {[%clk 0:00:40.3]} 11... Qxe4+ {[%clk 0:00:33]} 12. Nxe4 {[%clk 0:00:39.6]} 12... Bd6 {[%clk 0:00:30.7]} 13. Bxd7+ {[%clk 0:00:37.9]} 13... Kxd7 {[%clk 0:00:30.2]} 14. Nxd6 {[%clk 0:00:37.3]} 14... Kxd6 {[%clk 0:00:29.9]} 15. O-O {[%clk 0:00:37.2]} 15... Be2 {[%clk 0:00:28.3]} 16. Re1 {[%clk 0:00:35.6]} 16... Bg4 {[%clk 0:00:27.5]} 17. d3 {[%clk 0:00:35.3]} 17... Bd7 {[%clk 0:00:26.2]} 18. h3 {[%clk 0:00:34.7]} 18... c6 {[%clk 0:00:25.9]} 19. Be3 {[%clk 0:00:34.1]} 19... Kc7 {[%clk 0:00:25.3]} 20. c4 {[%clk 0:00:33.4]} 20... b6 {[%clk 0:00:24.3]} 21. b4 {[%clk 0:00:31.9]} 21... Rac8 {[%clk 0:00:24]} 22. a4 {[%clk 0:00:31.3]} 22... Kb8 {[%clk 0:00:23.6]} 23. a5 {[%clk 0:00:30.9]} 23... c5 {[%clk 0:00:19.5]} 24. axb6 {[%clk 0:00:30]} 24... axb6 {[%clk 0:00:18.9]} 25. bxc5 {[%clk 0:00:29.9]} 25... bxc5 {[%clk 0:00:18.3]} 26. Reb1+ {[%clk 0:00:26.8]} 26... Kc7 {[%clk 0:00:16.9]} 27. f5 {[%clk 0:00:25.7]} 27... Kd8 {[%clk 0:00:16.7]} 28. Rb7 {[%clk 0:00:22.1]} 28... Bxf5 {[%clk 0:00:16]} 29. d4 {[%clk 0:00:20.4]} 29... Rc7 {[%clk 0:00:15.1]} 30. Rb8+ {[%clk 0:00:18.9]} 30... Rc8 {[%clk 0:00:13.7]} 31. Rxc8+ {[%clk 0:00:17.2]} 31... Bxc8 {[%clk 0:00:12.5]} 32. Ra8 {[%clk 0:00:16]} 32... Re8 {[%clk 0:00:11.6]} 33. Bf2 {[%clk 0:00:13.5]} 33... cxd4 {[%clk 0:00:10.5]} 34. Bxd4 {[%clk 0:00:12.7]} 34... Re1+ {[%clk 0:00:10.2]} 35. Kf2 {[%clk 0:00:12.1]} 35... Rc1 {[%clk 0:00:09.9]} 36. Bb6+ {[%clk 0:00:11]} 36... Kd7 {[%clk 0:00:08]} 37. c5 {[%clk 0:00:10.9]} 37... Kc6 {[%clk 0:00:05.8]} 38. Ra7 {[%clk 0:00:10.8]} 38... Bb7 {[%clk 0:00:05.1]} 39. Ra2 {[%clk 0:00:08.7]} 39... f6 {[%clk 0:00:04.7]} 40. Rd2 {[%clk 0:00:07.6]} 40... Rc4 {[%clk 0:00:03]} 41. Rd6+ {[%clk 0:00:06.5]} 41... Kb5 {[%clk 0:00:01.4]} 42. Rd7 {[%clk 0:00:05.8]} 42... Bc6 {[%clk 0:00:00.4]} 43. Rxg7 {[%clk 0:00:04.8]} 1-0